Department Family,Entity,Date,Expense Type,Expense Area,Supplier Name,Transaction Number,Amount,Description
Business Unit Name,Sub-Business Unit Name,Payment Date,Subjective Description,Cost Centre Level 27 Description,Supplier Name,Invoice Number,Invoice Amount,CC Description
York Teaching Hospital NHS Foundation Trust,York Teaching Hospital NHS Foundation Trust BU,28/08/2020,Non Healthcare Services From NHS Property Services,Monkgate Hc Property Charges,Nhs Property Services Ltd,00000001/H254268,43320.26,Monkgate Hc Property Charges
York Teaching Hospital NHS Foundation Trust,York Teaching Hospital NHS Foundation Trust BU,12/08/2020,Lease Rents,St Helen'S (Nelson'S Court) Site Expenses,Nhs Property Services Ltd,00000001/H321642,41275.57,St Helen'S (Nelson'S Court) Site Expenses
York Teaching Hospital NHS Foundation Trust,York Teaching Hospital NHS Foundation Trust BU,12/08/2020,Non Healthcare Services From NHS Property Services,Monkgate Hc Property Charges,Nhs Property Services Ltd,00000001/H323258,27786.96,Monkgate Hc Property Charges
York Teaching Hospital NHS Foundation Trust,York Teaching Hospital NHS Foundation Trust BU,04/08/2020,Drugs,Lloyds Pharmacy,Lloyds Pharmacy Ltd,91130,496441.04,Lloyds Pharmacy
York Teaching Hospital NHS Foundation Trust,York Teaching Hospital NHS Foundation Trust BU,05/08/2020,Drugs,Lloyds Pharmacy,Lloyds Pharmacy Ltd,91689,557543.13,Lloyds Pharmacy
York Teaching Hospital NHS Foundation Trust,York Teaching Hospital NHS Foundation Trust BU,26/08/2020,Drugs,Lloyds Pharmacy,Lloyds Pharmacy Ltd,92378,594206.1,Lloyds Pharmacy
York Teaching Hospital NHS Foundation Trust,York Teaching Hospital NHS Foundation Trust BU,18/08/2020,Other Creditors < One Year,Rsc Stores Issue Control,NHS Supply Chain Co-ordination Limited,1121068646,167021.91,Rsc Stores Issue Control
York Teaching Hospital NHS Foundation Trust,York Teaching Hospital NHS Foundation Trust BU,18/08/2020,Other Creditors < One Year,Rsc Stores Issue Control,NHS Supply Chain Co-ordination Limited,1121071581,191107,Rsc Stores Issue Control
York Teaching Hospital NHS Foundation Trust,York Teaching Hospital NHS Foundation Trust BU,18/08/2020,Other Creditors < One Year,Rsc Stores Issue Control,NHS Supply Chain Co-ordination Limited,1121076178,190366.81,Rsc Stores Issue Control
York Teaching Hospital NHS Foundation Trust,York Teaching Hospital NHS Foundation Trust BU,21/08/2020,Other Creditors < One Year,Rsc Stores Issue Control,NHS Supply Chain Co-ordination Limited,1121079955,167408.33,Rsc Stores Issue Control
York Teaching Hospital NHS Foundation Trust,York Teaching Hospital NHS Foundation Trust BU,26/08/2020,Specialty Registrar,Radiology Medical Staff,Leeds Teaching Hospitals Nhs Trust,1410159366,25000,Radiology Medical Staff
York Teaching Hospital NHS Foundation Trust,York Teaching Hospital NHS Foundation Trust BU,26/08/2020,Specialty Registrar,Radiology Medical Staff,Leeds Teaching Hospitals Nhs Trust,1410160878,25000,Radiology Medical Staff
York Teaching Hospital NHS Foundation Trust,York Teaching Hospital NHS Foundation Trust BU,26/08/2020,Consultant,Oncology Snr Med York,Leeds Teaching Hospitals Nhs Trust,1410160997,29916.1,Oncology Snr Med York
York Teaching Hospital NHS Foundation Trust,York Teaching Hospital NHS Foundation Trust BU,26/08/2020,Med Surg Eqpt Disposable,C.A.P.D.,Baxter Healthcare Ltd,20100588,31872.3,C.A.P.D.
York Teaching Hospital NHS Foundation Trust,York Teaching Hospital NHS Foundation Trust BU,21/08/2020,Laboratory Test Kits,Covi19 Care Group 4,Genmark Diagnostics Uk Ltd,2020/FGB000000038,37152,Covi19 Care Group 4
York Teaching Hospital NHS Foundation Trust,York Teaching Hospital NHS Foundation Trust BU,04/08/2020,Amounts Owed To JV And Associates > One Year,Cr More Than One Year,York Teaching Hospitals Facilities Management LLP,2020000824,6658692.31,Cr More Than One Year
York Teaching Hospital NHS Foundation Trust,York Teaching Hospital NHS Foundation Trust BU,21/08/2020,Professional Fees,Hcl Management Charges,Clarity Workforce Technology Ltd,20941,27172.14,Hcl Management Charges
York Teaching Hospital NHS Foundation Trust,York Teaching Hospital NHS Foundation Trust BU,04/08/2020,Additions - Information Technology,Covid-19 SNS  Capital Equipment,CAE Technology Services Ltd,252875,51715.91,Covid-19 SNS  Capital Equipment
York Teaching Hospital NHS Foundation Trust,York Teaching Hospital NHS Foundation Trust BU,04/08/2020,Laboratory Chemicals,General Haematology,Sysmex U K Ltd,3049195623,33957.53,General Haematology
York Teaching Hospital NHS Foundation Trust,York Teaching Hospital NHS Foundation Trust BU,04/08/2020,Laboratory Chemicals,General Haematology,Sysmex U K Ltd,3049195625,26343.78,General Haematology
York Teaching Hospital NHS Foundation Trust,York Teaching Hospital NHS Foundation Trust BU,28/08/2020,Laboratory Chemicals,General Haematology,Sysmex U K Ltd,3049199366,33957.53,General Haematology
York Teaching Hospital NHS Foundation Trust,York Teaching Hospital NHS Foundation Trust BU,14/08/2020,Additions - Information Technology,Cs830 I.T.Pc'S,Hp Inc Uk Ltd,5234536,46350,Cs830 I.T.Pc'S
York Teaching Hospital NHS Foundation Trust,York Teaching Hospital NHS Foundation Trust BU,21/08/2020,Tax And Social Security Costs < One Year,Inland Revenue Income Tax,Hm Revenue And Customs,585PD00115336JULY20,7250991.22,Inland Revenue Income Tax
York Teaching Hospital NHS Foundation Trust,York Teaching Hospital NHS Foundation Trust BU,07/08/2020,Non Healthcare Services From Foundation Trusts,Whitby Hospital Property Charges,Humber Teaching NHS Foundation Trust,59886952,54006,Whitby Hospital Property Charges
York Teaching Hospital NHS Foundation Trust,York Teaching Hospital NHS Foundation Trust BU,07/08/2020,Vat Debtor < One Year,Dr Vat Debtor,Humber Teaching NHS Foundation Trust,59886952,54006,Dr Vat Debtor
York Teaching Hospital NHS Foundation Trust,York Teaching Hospital NHS Foundation Trust BU,26/08/2020,Telephone Rental and Call Charges,Telecommunications,Block Solutions Ltd,7000975,28280.15,Telecommunications
York Teaching Hospital NHS Foundation Trust,York Teaching Hospital NHS Foundation Trust BU,05/08/2020,Non Healthcare Services From Other NHS Bodies,Special Progamme General,NHS North Yorkshire CCG,7016102344I,27260,Special Progamme General
York Teaching Hospital NHS Foundation Trust,York Teaching Hospital NHS Foundation Trust BU,26/08/2020,Pacemakers,Cardio/Respiratory Dept,Abbott Medical U.K. Limited,7500458596,48600,Cardio/Respiratory Dept
York Teaching Hospital NHS Foundation Trust,York Teaching Hospital NHS Foundation Trust BU,14/08/2020,Raw Materials And Consumables,Drugs,Bayer Plc,824C286865,95807.88,Drugs
York Teaching Hospital NHS Foundation Trust,York Teaching Hospital NHS Foundation Trust BU,04/08/2020,Vat Debtor < One Year,Dr Vat Debtor,Bayer Plc,824C292761,45622.8,Dr Vat Debtor
York Teaching Hospital NHS Foundation Trust,York Teaching Hospital NHS Foundation Trust BU,04/08/2020,Vat Debtor < One Year,Dr Vat Debtor,Bayer Plc,824C292979,91245.6,Dr Vat Debtor
York Teaching Hospital NHS Foundation Trust,York Teaching Hospital NHS Foundation Trust BU,14/08/2020,Raw Materials And Consumables,Drugs,Bayer Plc,824C294256,36498.24,Drugs
York Teaching Hospital NHS Foundation Trust,York Teaching Hospital NHS Foundation Trust BU,14/08/2020,Raw Materials And Consumables,Drugs,Bayer Plc,824C294700,91245.6,Drugs
York Teaching Hospital NHS Foundation Trust,York Teaching Hospital NHS Foundation Trust BU,14/08/2020,Raw Materials And Consumables,Drugs,Bayer Plc,824C294701,36498.24,Drugs
York Teaching Hospital NHS Foundation Trust,York Teaching Hospital NHS Foundation Trust BU,26/08/2020,Raw Materials And Consumables,Drugs,Bayer Plc,824C297156,45622.8,Drugs
York Teaching Hospital NHS Foundation Trust,York Teaching Hospital NHS Foundation Trust BU,04/08/2020,Raw Materials And Consumables,Drugs,Bayer Plc,824c292980,91245.6,Drugs
York Teaching Hospital NHS Foundation Trust,York Teaching Hospital NHS Foundation Trust BU,14/08/2020,Raw Materials And Consumables,Drugs,Bayer Plc,824c294702,91245.6,Drugs
York Teaching Hospital NHS Foundation Trust,York Teaching Hospital NHS Foundation Trust BU,26/08/2020,Raw Materials And Consumables,Drugs,Novartis Pharmaceuticals Uk Ltd,92321497,38532.25,Drugs
York Teaching Hospital NHS Foundation Trust,York Teaching Hospital NHS Foundation Trust BU,11/08/2020,Vat Debtor < One Year,Dr Vat Debtor,Csl Behring Uk Ltd,994026516,44100,Dr Vat Debtor
York Teaching Hospital NHS Foundation Trust,York Teaching Hospital NHS Foundation Trust BU,18/08/2020,Contractual Clinical Services,Cath Lab,Regents Park Cardiovascular Solutions Ltd,GK04-01052020,41340,Cath Lab
York Teaching Hospital NHS Foundation Trust,York Teaching Hospital NHS Foundation Trust BU,18/08/2020,Med Surg Eqpt Disposable,Cath Lab,Regents Park Cardiovascular Solutions Ltd,GK04-01062020,41340,Cath Lab
York Teaching Hospital NHS Foundation Trust,York Teaching Hospital NHS Foundation Trust BU,18/08/2020,Contractual Clinical Services,Cath Lab,Regents Park Cardiovascular Solutions Ltd,GK04-01072020,41340,Cath Lab
York Teaching Hospital NHS Foundation Trust,York Teaching Hospital NHS Foundation Trust BU,18/08/2020,Contractual Clinical Services,Cath Lab,Regents Park Cardiovascular Solutions Ltd,GK04-01082020,41340,Cath Lab
York Teaching Hospital NHS Foundation Trust,York Teaching Hospital NHS Foundation Trust BU,04/08/2020,Other Debtors < One Year,Consolidated Invoices,Hcl Doctors Ltd,HDSI0000744,56521.74,Consolidated Invoices
York Teaching Hospital NHS Foundation Trust,York Teaching Hospital NHS Foundation Trust BU,05/08/2020,Other Debtors < One Year,Consolidated Invoices,Hcl Doctors Ltd,HDSI0000750,44159.99,Consolidated Invoices
York Teaching Hospital NHS Foundation Trust,York Teaching Hospital NHS Foundation Trust BU,14/08/2020,Other Debtors < One Year,Consolidated Invoices,Hcl Doctors Ltd,HDSI0000760,46041.92,Consolidated Invoices
York Teaching Hospital NHS Foundation Trust,York Teaching Hospital NHS Foundation Trust BU,21/08/2020,Other Debtors < One Year,Consolidated Invoices,Hcl Doctors Ltd,HDSI0000771,37054.94,Consolidated Invoices
York Teaching Hospital NHS Foundation Trust,York Teaching Hospital NHS Foundation Trust BU,26/08/2020,Other Debtors < One Year,Consolidated Invoices,Hcl Doctors Ltd,HDSI0000776,49244.38,Consolidated Invoices
York Teaching Hospital NHS Foundation Trust,York Teaching Hospital NHS Foundation Trust BU,19/08/2020,Raw Materials And Consumables,Drugs,Aah Hospital Service,JULY2020SGH,59642.99,Drugs
York Teaching Hospital NHS Foundation Trust,York Teaching Hospital NHS Foundation Trust BU,19/08/2020,Raw Materials And Consumables,Drugs,Aah Hospital Service,JULY2020YORK,230248.55,Drugs
York Teaching Hospital NHS Foundation Trust,York Teaching Hospital NHS Foundation Trust BU,21/08/2020,Raw Materials And Consumables,Drugs,Healthcare At Home Ltd,OP/9411643,25887,Drugs
York Teaching Hospital NHS Foundation Trust,York Teaching Hospital NHS Foundation Trust BU,21/08/2020,Computer Software / License  Fees,Pharmacy-York,WellSky International Ltd,P-INV-000645,34722,Pharmacy-York
York Teaching Hospital NHS Foundation Trust,York Teaching Hospital NHS Foundation Trust BU,12/08/2020,Healthcare From Commercial Sector,Non-Pay Coyc,Preventx Ltd,PY658203,26366.4,Non-Pay Coyc
York Teaching Hospital NHS Foundation Trust,York Teaching Hospital NHS Foundation Trust BU,12/08/2020,Healthcare From Commercial Sector,Non-Pay Nycc,Preventx Ltd,PY673277A,30613.2,Non-Pay Nycc
York Teaching Hospital NHS Foundation Trust,York Teaching Hospital NHS Foundation Trust BU,12/08/2020,Healthcare From Commercial Sector,Non-Pay Coyc,Preventx Ltd,PY687061,33010.19,Non-Pay Coyc
York Teaching Hospital NHS Foundation Trust,York Teaching Hospital NHS Foundation Trust BU,28/08/2020,Healthcare From Commercial Sector,STI Screening NYCC,Preventx Ltd,PY700971,38990.4,STI Screening NYCC
York Teaching Hospital NHS Foundation Trust,York Teaching Hospital NHS Foundation Trust BU,04/08/2020,Laboratory External Tests,Ct,Radiology Reporting Online,SIN005644,29177.23,Ct
York Teaching Hospital NHS Foundation Trust,York Teaching Hospital NHS Foundation Trust BU,26/08/2020,Laboratory External Tests,Ct,Radiology Reporting Online,SIN005799,26217.3,Ct
York Teaching Hospital NHS Foundation Trust,York Teaching Hospital NHS Foundation Trust BU,26/08/2020,Laboratory External Tests,Ct,Radiology Reporting Online,SIN005801,36338.13,Ct
York Teaching Hospital NHS Foundation Trust,York Teaching Hospital NHS Foundation Trust BU,21/08/2020,Raw Materials And Consumables,Drugs,Qualasept Ltd,SQS0029406,25170.24,Drugs
York Teaching Hospital NHS Foundation Trust,York Teaching Hospital NHS Foundation Trust BU,26/08/2020,Vat Debtor < One Year,Dr Vat Debtor,Qualasept Ltd,SQS0030157,33069.12,Dr Vat Debtor
